fUSD/lending_fUSD_20250826
["ID","MTS","AMOUNT","RATE_DAILY","PERIOD"]
[381519017,1756247440467,-151.0,0.00018,2]
[381519018,1756247440477,-151.0,0.00018,2]
[381519019,1756247440486,-151.0,0.00018,2]
[381519020,1756247440496,-234.015791,0.00018,2]
[381519021,1756247440506,-191.320936,0.00018,2]
[381519022,1756247440516,-151.0,0.00018,2]
[381519023,1756247440526,-234.015791,0.00018,2]
[381519024,1756247440536,-191.320936,0.00018,2]
[381519025,1756247440545,-239.054112,0.00018,2]
[381519026,1756247440555,-234.015791,0.00018,2]
[381519027,1756247440564,-191.320936,0.00018,2]
[381519028,1756247440574,-191.320936,0.00018,2]
[381519029,1756247440584,-234.015791,0.00018,2]
[381519030,1756247440593,-151.0,0.00018,2]
[381519032,1756247440603,-151.0,0.00018,2]
[381519034,1756247440613,-151.0,0.00018,2]
[381519035,1756247440622,-151.0,0.00018,2]
[381519036,1756247440632,-151.0,0.00018,2]
[381519037,1756247440642,-151.0,0.00018,2]
[381519038,1756247440651,-533.060755,0.00018,2]
[381519039,1756247440660,-533.060755,0.00018,2]
[381519040,1756247440670,-533.060755,0.00018,2]
[381519041,1756247440679,-151.0,0.00018,2]
[381519042,1756247440688,-533.060755,0.00018,2]
[381519043,1756247440698,-151.0,0.00018,2]
[381519044,1756247440707,-3756.966919,0.00018,2]
[381519045,1756247440717,-3756.966919,0.00018,2]
[381519046,1756247440726,-669.299743,0.00018,2]
[381519047,1756247440736,-151.0,0.00018,2]
[381519048,1756247440746,-3756.966919,0.00018,2]
[381519049,1756247440755,-669.299743,0.00018,2]
[381519050,1756247440765,-151.0,0.00018,2]
[381519051,1756247440774,-3756.966919,0.00018,2]
[381519052,1756247440783,-669.299743,0.00018,2]
[381519053,1756247440793,-151.0,0.00018,2]
[381519054,1756247440803,-669.299743,0.00018,2]
[381519055,1756247440812,-234.566172,0.00018,2]
[381519056,1756247440822,-151.0,0.00018,2]
[381519057,1756247440831,-151.0,0.00018,2]
[381519058,1756247440841,-234.566172,0.00018,2]
[381519059,1756247440850,-151.0,0.00018,2]
[381519060,1756247440860,-151.0,0.00018,2]
[381519061,1756247440870,-234.566172,0.00018,2]
[381519062,1756247440879,-151.0,0.00018,2]
[381519063,1756247440888,-234.566172,0.00018,2]
[381519064,1756247440898,-151.0,0.00018,2]
[381519065,1756247440907,-151.0,0.00018,2]
[381519066,1756247440917,-151.0,0.00018,2]
[381519067,1756247440927,-151.0,0.00018,2]
[381519068,1756247440936,-151.0,0.00018,2]
[381519069,1756247440948,-151.0,0.00018,2]
[381519070,1756247440958,-151.0,0.00018,2]
[381519071,1756247440967,-151.0,0.00018,2]
[381519072,1756247440979,-151.0,0.00018,2]
[381519073,1756247440989,-151.0,0.00018,2]
[381519074,1756247441011,-151.0,0.00018,2]
[381519075,1756247441021,-151.0,0.00018,2]
[381519076,1756247441031,-443.059539,0.00018,2]
[381519077,1756247441041,-443.059539,0.00018,2]
[381519078,1756247441050,-443.059539,0.00018,2]
[381519079,1756247441060,-443.059539,0.00018,2]
[381519080,1756247441071,-151.0,0.00018,2]
[381519081,1756247441081,-151.0,0.00018,2]
[381519082,1756247441090,-151.0,0.00018,2]
[381519083,1756247441100,-151.0,0.00018,2]
[381519084,1756247441110,-151.0,0.00018,2]
[381519085,1756247441119,-151.0,0.00018,2]
[381519086,1756247441129,-151.0,0.00018,2]
[381519087,1756247441140,-248.88012,0.00018,2]
[381519088,1756247441150,-171.154378,0.00018,2]
[381519089,1756247441160,-151.0,0.00018,2]
[381519090,1756247441169,-151.0,0.00018,2]
[381519091,1756247441180,-151.0,0.00018,2]
[381519092,1756247441190,-171.154378,0.00018,2]
[381519093,1756247441199,-171.154378,0.00018,2]
[381519094,1756247441208,-151.0,0.00018,2]
[381519095,1756247441218,-171.154378,0.00018,2]
[381519096,1756247441227,-151.0,0.00018,2]
[381519097,1756247441236,-151.0,0.00018,2]
[381519098,1756247441246,-151.0,0.00018,2]
[381519099,1756247441255,-151.0,0.00018,2]
[381519100,1756247441264,-151.0,0.00018,2]
[381519101,1756247441274,-294.121782,0.00018,2]
[381519102,1756247441283,-187.168866,0.00018,2]
[381519103,1756247441292,-187.168866,0.00018,2]
[381519104,1756247441302,-187.168866,0.00018,2]
[381519105,1756247441311,-151.0,0.00018,2]
[381519106,1756247441320,-151.0,0.00018,2]
[381519107,1756247441332,-187.168866,0.00018,2]
[381519108,1756247441341,-730.058462,0.00018,2]
[381519109,1756247441350,-151.0,0.00018,2]
[381519110,1756247441360,-219.965616,0.00018,2]
[381519111,1756247441370,-730.058462,0.00018,2]
[381519112,1756247441379,-151.0,0.00018,2]
[381519113,1756247441389,-1000.0,0.0001812,2]
[381519114,1756247441398,-160.0,0.00018266,7]
[381519115,1756247441410,-5632.28126567,0.00018284,2]
[381519116,1756247441419,-300.0,0.00018384,2]
[381519117,1756247441429,-250.0,0.00018384,2]
[381519118,1756247441439,-150.0,0.00018384,2]
[381519119,1756247441450,-300.0,0.00018384,2]
[381519120,1756247441460,-2500.0,0.00018384,2]
[381519121,1756247441476,-250.0,0.00018384,2]
[381519122,1756247441486,-204.0,0.00018384,2]
[381519123,1756247441495,-300.0,0.00018384,2]
[381519124,1756247441506,-204.0,0.00018384,2]
[381519125,1756247441516,-185.27,0.00018779,2]
[381519126,1756247441526,-152.9,0.000188,2]
[381519127,1756247441536,-152.9,0.000188,2]
[381519128,1756247441546,-152.9,0.000188,2]
[381519129,1756247441555,-152.9,0.000188,2]
[381519130,1756247441565,-152.9,0.000188,2]
[381519131,1756247441575,-152.9,0.000188,2]
[381519132,1756247441584,-152.9,0.000188,2]
[381519133,1756247441594,-152.9,0.000188,2]
[381519134,1756247441604,-152.9,0.000188,2]
[381519135,1756247441615,-152.9,0.000188,2]
[381519136,1756247441625,-161.6,0.00018999,2]
[381519137,1756247441635,-5632.28126561,0.00019346,2]
[381519138,1756247441645,-16600.01462702,0.00019444,2]
[381519139,1756247441655,-1680.0,0.00019628,2]
[381519140,1756247441665,-5860.74395173,0.0002,2]
[381519141,1756247441676,-191.33,0.00020187,2]
[381519142,1756247441685,-895.52261073,0.00020327,2]
[381519143,1756247441695,-1000.0,0.00020385,2]
[381519144,1756247441705,-159.6,0.00020403,2]
[381519145,1756247441715,-5632.28126561,0.00020409,2]
[381519146,1756247441724,-500.0,0.00021096,2]
[381519147,1756247441734,-161.6,0.00021374,2]
[381519148,1756247441744,-5632.28126561,0.00021471,2]
[381519149,1756247441754,-4000.0,0.00021485,4]
[381519150,1756247441764,-250.0,0.00022083,2]
[381519151,1756247441773,-574.78,0.000224,7]
[381519152,1756247441783,-16006.05,0.000224,2]
[381519153,1756247441794,-30980.94,0.000224,7]
[381519154,1756247441805,-151.0,0.00022533,7]
[381519155,1756247441816,-151.0,0.00022533,7]
[381519156,1756247441827,-151.0,0.00022533,7]
[381519157,1756247441836,-171.154378,0.00022533,7]
[381519158,1756247441846,-156.39376,0.00022533,7]
[381519159,1756247441856,-151.0,0.00022533,7]
[381519160,1756247441865,-171.154378,0.00022533,7]
[381519161,1756247441875,-171.154378,0.00022533,7]
[381519162,1756247441884,-151.0,0.00022533,7]
[381519163,1756247441894,-171.154378,0.00022533,7]
[381519164,1756247441903,-151.0,0.00022533,7]
[381519165,1756247441913,-151.0,0.00022533,7]
[381519166,1756247441925,-151.0,0.00022533,7]
[381519167,1756247441935,-187.168866,0.00022533,7]
[381519168,1756247441947,-187.168866,0.00022533,7]
[381519169,1756247441957,-187.168866,0.00022533,7]
[381519170,1756247441967,-151.0,0.00022533,7]
[381519171,1756247441976,-187.168866,0.00022533,7]
[381519172,1756247441985,-151.0,0.00022533,7]
[381519173,1756247441995,-730.058462,0.00022533,7]
[381519174,1756247442004,-151.0,0.00022533,7]
[381519175,1756247442014,-219.965616,0.00022533,7]
[381519176,1756247442024,-730.058462,0.00022533,7]
[381519177,1756247442035,-5632.28126561,0.00022533,2]
[381519178,1756247442046,-185.27,0.00022535,2]
[381519179,1756247442058,-1000.0,0.0002265,2]
[381519180,1756247442068,-895.52261073,0.00022754,2]
[381519181,1756247442079,-500.0,0.00022822,2]
[381519182,1756247442089,-500.0,0.00022849,2]
[381519183,1756247442100,-4154.54,0.000229,7]
[381519184,1756247442110,-4000.0,0.00023336,4]
[381519185,1756247442120,-5632.28126561,0.00023596,2]
[381519186,1756247442131,-167.38057004,0.00023695,2]
[381519187,1756247442141,-161.6,0.00023749,2]
[381519188,1756247442151,-257.91778498,0.00023795,2]
[381519189,1756247442161,-2434.74389024,0.00023795,2]
[381519190,1756247442171,-2524.82941417,0.0002385,2]
[381519191,1756247442181,-2618.2481025,0.00023905,2]
[381519192,1756247442192,-2715.12328229,0.0002396,2]
[381519193,1756247442202,-844.63891918,0.00024,7]
[381519194,1756247442212,-2815.58284374,0.00024015,2]
[381519195,1756247442221,-2919.75940895,0.0002407,2]
[381519196,1756247442231,-3027.79050709,0.00024125,2]
[381519197,1756247442243,-306.25622012,0.0002418,2]
[381519198,1756247442254,-30980.94,0.000242,7]
[381519199,1756247442265,-844.63891918,0.000242,7]
[381519200,1756247442275,-161.45,0.0002455,2]
[381519201,1756247442285,-5632.28126561,0.00024658,2]
[381519202,1756247442295,-152.9,0.0002469,2]
[381519203,1756247442306,-574.78,0.000247,7]
[381519204,1756247442315,-16006.05,0.000247,2]
[381519205,1756247442326,-533.060755,0.000247,7]
[381519206,1756247442339,-533.060755,0.000247,7]
[381519207,1756247442349,-533.060755,0.000247,7]
[381519208,1756247442359,-151.0,0.000247,7]
[381519209,1756247442374,-533.060755,0.000247,7]
[381519210,1756247442384,-151.0,0.000247,7]
[381519211,1756247442395,-3756.966919,0.000247,7]
[381519212,1756247442406,-3756.966919,0.000247,7]
[381519213,1756247442416,-669.299743,0.000247,7]
[381519214,1756247442429,-151.0,0.000247,7]
[381519215,1756247442439,-3756.966919,0.000247,7]
[381519216,1756247442449,-669.299743,0.000247,7]
[381519217,1756247442459,-151.0,0.000247,7]
[381519218,1756247442475,-3756.966919,0.000247,7]
[381519219,1756247442485,-669.299743,0.000247,7]
[381519220,1756247442496,-669.299743,0.000247,7]
[381519221,1756247442506,-234.566172,0.000247,7]
[381519222,1756247442518,-151.0,0.000247,7]
[381519223,1756247442529,-151.0,0.000247,7]
[381519224,1756247442539,-234.566172,0.000247,7]
[381519225,1756247442550,-151.0,0.000247,7]
[381519226,1756247442560,-234.566172,0.000247,7]
[381519227,1756247442570,-151.0,0.000247,7]
[381519228,1756247442581,-234.566172,0.000247,7]
[381519229,1756247442591,-151.0,0.000247,7]
[381519230,1756247442602,-151.0,0.000247,7]
[381519231,1756247442613,-151.0,0.000247,7]
[381519232,1756247442623,-151.0,0.000247,7]
[381519233,1756247442633,-235.321462,0.000247,7]
[381519234,1756247442643,-151.0,0.000247,7]
[381519235,1756247442655,-151.0,0.000247,7]
[381519236,1756247442665,-200.593943,0.000247,7]
[381519237,1756247442677,-151.0,0.000247,7]
[381519238,1756247442687,-443.059539,0.000247,7]
[381519239,1756247442697,-443.059539,0.000247,7]
[381519240,1756247442707,-443.059539,0.000247,7]
[381519241,1756247442718,-443.059539,0.000247,7]
[381519242,1756247442728,-151.0,0.000247,7]
[381519244,1756247442738,-151.0,0.000247,7]
[381519245,1756247442749,-165.79952,0.000247,7]
[381519246,1756247442760,-151.0,0.000247,7]
[381519247,1756247442770,-151.0,0.000247,7]
[381519248,1756247442780,-160.0,0.0002476,2]
[381519249,1756247442790,-212.18043798,0.0002476,2]
[381519250,1756247442802,-409.68272476,0.0002476,2]
[381519251,1756247442813,-160.0,0.0002476,2]
[381519252,1756247442823,-152.78,0.00024764,2]
[381519253,1756247442834,-626.40465922,0.00024785,2]
[381519254,1756247442844,-152.9,0.0002479,2]
[381519255,1756247442854,-152.9,0.0002479,2]
[381519256,1756247442866,-325.86990727,0.0002479,2]
[381519257,1756247442876,-604802.339402,0.000248,2]
[381519258,1756247442887,-200.0,0.000248,2]
[381519259,1756247442898,-500.0,0.000248,2]
[381519260,1756247442909,-533.060755,0.000248,7]
[381519261,1756247442919,-533.060755,0.000248,7]
[381519262,1756247442929,-533.060755,0.000248,7]
[381519263,1756247442942,-151.0,0.000248,7]
[381519264,1756247442952,-533.060755,0.000248,7]
[381519265,1756247442965,-151.0,0.000248,7]
[381519266,1756247442975,-3756.966919,0.000248,7]
[381519267,1756247442986,-3756.966919,0.000248,7]
[381519268,1756247442996,-669.299743,0.000248,7]
[381519269,1756247443006,-151.0,0.000248,7]
[381519270,1756247443016,-3756.966919,0.000248,7]
[381519271,1756247443025,-669.299743,0.000248,7]
[381519272,1756247443036,-3756.966919,0.000248,7]
[381519273,1756247443045,-263.070092,0.000248,7]
[381519274,1756247443055,-669.299743,0.000248,7]
[381519275,1756247443065,-669.299743,0.000248,7]
[381519276,1756247443075,-234.566172,0.000248,7]
[381519277,1756247443085,-151.0,0.000248,7]
[381519278,1756247443095,-234.566172,0.000248,7]
[381519279,1756247443104,-151.0,0.000248,7]
[381519280,1756247443114,-234.566172,0.000248,7]
[381519281,1756247443124,-234.566172,0.000248,7]
[381519282,1756247443134,-151.0,0.000248,7]
[381519283,1756247443143,-151.0,0.000248,7]
[381519284,1756247443153,-189.870056,0.000248,7]
[381519285,1756247443162,-151.0,0.000248,7]
[381519286,1756247443172,-151.0,0.000248,7]
[381519287,1756247443182,-151.0,0.000248,7]
[381519288,1756247443192,-151.0,0.000248,7]
[381519289,1756247443202,-500.0,0.000248,2]
[381519290,1756247443211,-500.0,0.000248,2]
[381519291,1756247443221,-844.63891918,0.000248,7]
[381519292,1756247443231,-151.0,0.000248,7]
[381519293,1756247443242,-443.059539,0.000248,7]
[381519294,1756247443251,-443.059539,0.000248,7]
[381519295,1756247443261,-443.059539,0.000248,7]
[381519296,1756247443271,-443.059539,0.000248,7]
[381519297,1756247443280,-151.0,0.000248,7]
[381519298,1756247443290,-151.0,0.000248,7]
[381519299,1756247443300,-151.0,0.000248,7]
[381519300,1756247443309,-151.0,0.000248,7]
[381519301,1756247443319,-171.154378,0.000248,7]
[381519302,1756247443329,-151.0,0.000248,7]
[381519304,1756247443340,-171.154378,0.000248,7]
[381519305,1756247443350,-160.0,0.000248,7]
[381519306,1756247443360,-171.154378,0.000248,7]
[381519307,1756247443371,-151.0,0.000248,7]
[381519308,1756247443380,-156.315088,0.000248,7]
[381519309,1756247443390,-171.154378,0.000248,7]
[381519310,1756247443400,-151.0,0.000248,7]
[381519311,1756247443412,-151.0,0.000248,7]
[381519312,1756247443422,-187.168866,0.000248,7]
[381519313,1756247443432,-187.168866,0.000248,7]
[381519314,1756247443442,-187.168866,0.000248,7]
[381519315,1756247443453,-151.0,0.000248,7]
[381519316,1756247443463,-187.168866,0.000248,7]
[381519317,1756247443472,-730.058462,0.000248,7]
[381519318,1756247443482,-151.0,0.000248,7]
[381519321,1756247443943,-151.0,0.000248,7]
[381519322,1756247443986,-219.965616,0.000248,7]
[381519323,1756247443996,-730.058462,0.000248,7]
[381519324,1756247444006,-151.0,0.000248,7]
[381519325,1756247444015,-500.0,0.00024885,2]
[381519326,1756247444025,-318.93584135,0.00024885,2]
[381519327,1756247444034,-670.58624095,0.00024885,2]
[381519328,1756247444044,-14162.07323598,0.000249,2]
[381519329,1756247444053,-1000.0,0.00024915,2]
[381519330,1756247444063,-377.78,0.00024917,2]
[381519331,1756247444073,-309.0,0.00024932,7]
[381519332,1756247444082,-238.0,0.00024932,7]
[381519333,1756247444092,-500.0,0.0002494,2]
[381519334,1756247444101,-309.0,0.00025,7]
[381519335,1756247444111,-238.0,0.00025,7]
[381519336,1756247444121,-1315.22,0.00025068,2]
[381519337,1756247444131,-500.0,0.0002515,2]
[381519338,1756247444140,-267.46074303,0.00025164,2]
[381519339,1756247444150,-895.52261073,0.00025182,6]
[381519340,1756247444171,-4000.0,0.00025188,4]
[381519341,1756247444181,-1000.0,0.00025348,2]
[381519342,1756247444190,-1000.0,0.00025348,2]
[381519343,1756247444200,-220.12734939,0.00025348,2]
[381519344,1756247444209,-409.68272476,0.00025597,3]
[381519345,1756247444219,-14162.07323583,0.00025597,3]
[381519346,1756247444228,-212.18043798,0.00025597,3]
[381519347,1756247444238,-844.63891918,0.00025597,3]
[381519348,1756247444247,-160.0,0.00025597,3]
[381519349,1756247444257,-1294.0,0.00025647,2]
[381519350,1756247444267,-161.45,0.00025692,7]
[381519351,1756247444276,-1000.0,0.00025698,2]
[381519352,1756247444286,-4023.81,0.00025707,2]
[381519353,1756247444295,-152.9,0.0002571,2]
[381519354,1756247444304,-5632.28126561,0.0002572,2]
[381519355,1756247444314,-1294.0,0.00025723,2]
[381519356,1756247444326,-5000.0,0.00025732,2]
[381519357,1756247444336,-383.469518,0.00025732,7]
[381519358,1756247444346,-383.469518,0.00025732,7]
[381519359,1756247444355,-151.0,0.00025732,7]
[381519360,1756247444364,-383.469518,0.00025732,7]
[381519361,1756247444375,-152.733341,0.00025732,7]
[381519362,1756247444384,-151.0,0.00025732,7]
[381519363,1756247444393,-383.469518,0.00025732,7]
[381519364,1756247444404,-222.269418,0.00025732,7]
[381519365,1756247444412,-151.0,0.00025732,7]
[381519366,1756247444422,-151.0,0.00025732,7]
[381519367,1756247444431,-151.0,0.00025732,7]
[381519368,1756247444441,-276.550352,0.00025732,7]
[381519369,1756247444450,-151.0,0.00025732,7]
[381519370,1756247444459,-151.0,0.00025732,7]
[381519371,1756247444468,-151.0,0.00025732,7]
[381519372,1756247444477,-151.0,0.00025732,7]
[381519373,1756247444487,-151.0,0.00025732,7]
[381519374,1756247444496,-151.0,0.00025732,7]
[381519375,1756247444506,-151.49626,0.00025732,7]
[381519376,1756247444515,-151.0,0.00025732,7]
[381519377,1756247444524,-151.0,0.00025732,7]
[381519378,1756247444533,-151.0,0.00025732,7]
[381519379,1756247444542,-151.0,0.00025732,7]
[381519380,1756247444551,-151.0,0.00025732,7]
[381519381,1756247444561,-151.0,0.00025732,7]
[381519382,1756247444570,-212.18043798,0.00025732,7]
[381519383,1756247444580,-166.12,0.00025789,2]
[381519384,1756247444589,-159.26,0.00025797,2]
[381519385,1756247444598,-4154.54,0.000258,7]
[381519386,1756247444607,-443.0,0.000258,2]
[381519387,1756247444616,-30980.94,0.000258,7]
[381519388,1756247444626,-1294.0,0.00025864,7]
[381519389,1756247444635,-238.0,0.0002589,7]
[381519390,1756247444645,-309.0,0.0002589,7]
[381519391,1756247444654,-1500.0,0.00025896,2]
[381519392,1756247444664,-1500.0,0.00025896,2]
[381519393,1756247444673,-1386.91,0.00025978,2]
[381519394,1756247444682,-150.0,0.00025978,2]
[381519395,1756247444691,-166.12,0.00025978,2]
[381519396,1756247444701,-408.65,0.00025978,2]
[381519397,1756247444710,-1019.28,0.00026,2]
[381519398,1756247444720,-16006.05,0.00026,2]
[381519399,1756247444730,-574.78,0.00026,7]
[381519400,1756247444739,-3711.2187,0.00026002,2]
[381519401,1756247444748,-151.0,0.00026002,7]
[381519402,1756247444757,-151.0,0.00026002,7]
[381519403,1756247444767,-171.154378,0.00026002,7]
[381519404,1756247444776,-151.0,0.00026002,7]
[381519405,1756247444787,-171.154378,0.00026002,7]
[381519406,1756247444796,-151.0,0.00026002,7]
[381519407,1756247444805,-171.154378,0.00026002,7]
[381519408,1756247444814,-171.154378,0.00026002,7]
[381519409,1756247444824,-151.0,0.00026002,7]
[381519410,1756247444833,-187.168866,0.00026002,7]
[381519411,1756247444843,-187.168866,0.00026002,7]
[381519412,1756247444853,-187.168866,0.00026002,7]
[381519413,1756247444863,-151.0,0.00026002,7]
[381519414,1756247444873,-187.168866,0.00026002,7]
[381519415,1756247444883,-730.058462,0.00026002,7]
[381519416,1756247444892,-151.0,0.00026002,7]
[381519417,1756247444901,-151.0,0.00026002,7]
[381519418,1756247444911,-219.965616,0.00026002,7]
[381519419,1756247444920,-730.058462,0.00026002,7]
[381519420,1756247444929,-222.39487225,0.00026002,2]
[381519421,1756247444938,-1294.0,0.00026013,2]
[381519422,1756247444948,-176.194,0.00026028,12]
[381519423,1756247444957,-1298.0,0.00026031,2]
[381519424,1756247444967,-566.0,0.00026031,2]
[381519425,1756247444976,-3374.0,0.00026031,2]
[381519426,1756247444986,-1256.0,0.00026031,2]
[381519427,1756247444996,-2031.0,0.00026031,2]
[381519428,1756247445005,-6146.0,0.00026031,2]
[381519429,1756247445015,-926.0,0.00026031,2]
[381519430,1756247445025,-151.0,0.00026032,7]
[381519431,1756247445034,-151.0,0.00026032,7]
[381519432,1756247445044,-151.0,0.00026032,7]
[381519433,1756247445054,-151.0,0.00026032,7]
[381519434,1756247445064,-151.0,0.00026032,7]
[381519435,1756247445074,-151.366327,0.00026032,7]
[381519436,1756247445084,-151.0,0.00026032,7]
[381519437,1756247445093,-151.0,0.00026032,7]
[381519438,1756247445103,-151.0,0.00026032,7]
[381519439,1756247445113,-151.0,0.00026032,7]
[381519440,1756247445123,-151.0,0.00026032,7]
[381519441,1756247445133,-234.015791,0.00026032,7]
[381519442,1756247445143,-191.320936,0.00026032,7]
[381519443,1756247445153,-151.0,0.00026032,7]
[381519444,1756247445163,-234.015791,0.00026032,7]
[381519445,1756247445172,-191.320936,0.00026032,7]
[381519446,1756247445182,-234.015791,0.00026032,7]
[381519447,1756247445191,-191.320936,0.00026032,7]
[381519448,1756247445202,-191.320936,0.00026032,7]
[381519449,1756247445211,-234.015791,0.00026032,7]
[381519450,1756247445221,-151.0,0.00026032,7]
[381519451,1756247445231,-151.0,0.00026032,7]
[381519452,1756247445241,-151.0,0.00026032,7]
[381519453,1756247445253,-151.0,0.00026032,7]
[381519454,1756247445263,-151.0,0.00026032,7]
[381519455,1756247445273,-941.96,0.0002604,2]
[381519456,1756247445283,-2890.334,0.00026054,12]
[381519457,1756247445293,-533.060755,0.00026064,7]
[381519458,1756247445302,-533.060755,0.00026064,7]
[381519459,1756247445311,-533.060755,0.00026064,7]
[381519460,1756247445321,-151.0,0.00026064,7]
[381519461,1756247445332,-533.060755,0.00026064,7]
[381519462,1756247445341,-151.0,0.00026064,7]
[381519463,1756247445351,-3756.966919,0.00026064,7]
[381519464,1756247445360,-3756.966919,0.00026064,7]
[381519465,1756247445370,-669.299743,0.00026064,7]
[381519466,1756247445381,-151.0,0.00026064,7]
[381519467,1756247445390,-3756.966919,0.00026064,7]
[381519468,1756247445399,-669.299743,0.00026064,7]
[381519469,1756247445409,-3756.966919,0.00026064,7]
[381519470,1756247445419,-669.299743,0.00026064,7]
[381519471,1756247445429,-669.299743,0.00026064,7]
[381519472,1756247445438,-234.566172,0.00026064,7]
[381519473,1756247445447,-151.0,0.00026064,7]
[381519474,1756247445456,-234.566172,0.00026064,7]
[381519475,1756247445466,-151.0,0.00026064,7]
[381519476,1756247445475,-234.566172,0.00026064,7]
[381519477,1756247445484,-234.566172,0.00026064,7]
[381519478,1756247445494,-151.0,0.00026064,7]
[381519479,1756247445505,-151.0,0.00026064,7]
[381519480,1756247445515,-151.0,0.00026064,7]
[381519481,1756247445525,-151.0,0.00026064,7]
[381519482,1756247445535,-151.0,0.00026064,7]
[381519483,1756247445544,-151.0,0.00026064,7]
[381519484,1756247445553,-151.0,0.00026064,7]
[381519485,1756247445565,-443.059539,0.00026064,7]
[381519486,1756247445574,-443.059539,0.00026064,7]
[381519487,1756247445583,-443.059539,0.00026064,7]
[381519488,1756247445592,-443.059539,0.00026064,7]
[381519489,1756247445601,-151.0,0.00026064,7]
[381519490,1756247445611,-151.0,0.00026064,7]
[381519491,1756247445621,-151.0,0.00026064,7]
[381519492,1756247445630,-151.233045,0.00026064,7]
[381519493,1756247445640,-1294.0,0.00026064,2]
[381519494,1756247445650,-152.9,0.00026092,2]
[381519495,1756247445659,-1247.4058151,0.00026102,2]
[381519496,1756247445668,-11503.1067334,0.00026102,2]
[381519497,1756247445678,-248235.2220217,0.00026102,2]
[381519498,1756247445687,-4215.3743627,0.00026102,2]
[381519499,1756247445699,-281.454285,0.00026102,7]
[381519500,1756247445708,-281.454285,0.00026102,7]
[381519501,1756247445720,-151.0,0.00026102,7]
[381519502,1756247445730,-281.454285,0.00026102,7]
[381519503,1756247445741,-151.0,0.00026102,7]
[381519504,1756247445751,-281.454285,0.00026102,7]
[381519505,1756247445760,-151.0,0.00026102,7]
[381519506,1756247445770,-151.0,0.00026102,7]
[381519507,1756247445779,-151.0,0.00026102,7]
[381519508,1756247445788,-450.255025,0.00026102,7]
[381519509,1756247445799,-151.0,0.00026102,7]
[381519510,1756247445808,-450.255025,0.00026102,7]
[381519511,1756247445818,-450.255025,0.00026102,7]
[381519512,1756247445828,-151.0,0.00026102,7]
[381519513,1756247445838,-450.255025,0.00026102,7]
[381519514,1756247445847,-235.554383,0.00026102,7]
[381519515,1756247445856,-235.554383,0.00026102,7]
[381519516,1756247445866,-235.554383,0.00026102,7]
[381519517,1756247445875,-235.554383,0.00026102,7]
[381519518,1756247445884,-151.0,0.00026102,7]
[381519519,1756247445894,-151.0,0.00026102,7]
[381519520,1756247445904,-151.0,0.00026102,7]
[381519521,1756247445914,-151.0,0.00026102,7]
[381519522,1756247445926,-151.0,0.00026102,7]